[Event "Live Chess"]
[Site "Chess.com"]
[Date "2024.06.01"]
[Round "-"]
[White "Rusty_Bridges"]
[Black "AlexanderMatlak"]
[Result "0-1"]
[WhiteElo "1512"]
[BlackElo "2401"]
[TimeControl "300"]
[EndTime "15:58:02 PDT"]
[Termination "AlexanderMatlak won by resignation"]

1. e4 {[%clk 0:04:55.2]} 1... c5 {[%clk 0:04:59]} 2. Be2 {[%clk 0:04:53.5]} 2...
Nc6 {[%clk 0:04:57.5]} 3. f4 {[%clk 0:04:52.3]} 3... g6 {[%clk 0:04:54.3]} 4.
Nf3 {[%clk 0:04:51.4]} 4... Bg7 {[%clk 0:04:53.7]} 5. O-O {[%clk 0:04:49]} 5...
e6 {[%clk 0:04:52.5]} 6. d3 {[%clk 0:04:46.9]} 6... Nge7 {[%clk 0:04:51.4]} 7.
Be3 {[%clk 0:04:46.4]} 7... d6 {[%clk 0:04:49.6]} 8. Nbd2 {[%clk 0:04:45.8]}
8... Bxb2 {[%clk 0:04:46.1]} 9. Rb1 {[%clk 0:04:42.9]} 9... Bg7 {[%clk 0:04:45]}
10. Nc4 {[%clk 0:04:39.3]} 10... O-O {[%clk 0:04:43.4]} 11. e5 {[%clk
0:04:36.6]} 11... dxe5 {[%clk 0:04:40.6]} 12. fxe5 {[%clk 0:04:34.6]} 12... b6
{[%clk 0:04:37.9]} 13. Nd6 {[%clk 0:04:31.7]} 13... Nxe5 {[%clk 0:04:28.5]} 14.
Nxc8 {[%clk 0:04:28]} 14... Nxf3+ {[%clk 0:04:27.4]} 15. Bxf3 {[%clk 0:04:26.3]}
15... Rxc8 {[%clk 0:04:27.3]} 16. Qd2 {[%clk 0:04:19.7]} 16... Bd4 {[%clk
0:04:26.2]} 17. Bxd4 {[%clk 0:04:17.7]} 17... Qxd4+ {[%clk 0:04:26.1]} 18. Kh1
{[%clk 0:04:16.5]} 18... Nf5 {[%clk 0:04:24.7]} 19. Rbe1 {[%clk 0:04:05.5]}
19... Rfd8 {[%clk 0:04:13.6]} 20. Re4 {[%clk 0:04:03.2]} 20... Qd6 {[%clk
0:04:04.4]} 21. Qg5 {[%clk 0:03:50.5]} 21... c4 {[%clk 0:03:59]} 22. dxc4 {[%clk
0:03:46.2]} 22... Qe7 {[%clk 0:03:42]} 23. Qg4 {[%clk 0:03:37.9]} 23... Nd6
{[%clk 0:03:35.4]} 24. Rd4 {[%clk 0:03:28.3]} 24... e5 {[%clk 0:03:34.1]} 25.
Re1 {[%clk 0:03:21.3]} 25... Qf6 {[%clk 0:03:24.6]} 26. Rdd1 {[%clk 0:03:00.5]}
26... Nxc4 {[%clk 0:03:17.1]} 27. h4 {[%clk 0:02:40.8]} 27... h5 {[%clk
0:03:08]} 28. Qg3 {[%clk 0:02:31.3]} 28... Rxd1 {[%clk 0:03:05]} 29. Rxd1 {[%clk
0:02:26.4]} 29... Ne3 {[%clk 0:02:54.3]} 30. Re1 {[%clk 0:02:18.3]} 30... Nf5
{[%clk 0:02:50.8]} 31. Qh3 {[%clk 0:02:03]} 31... Rxc2 {[%clk 0:02:38.6]} 0-1

[Event "Live Chess"]
[Site "Chess.com"]
[Date "2024.06.01"]
[Round "-"]
[White "StoreySniper"]
[Black "wadsy27"]
[Result "0-1"]
[WhiteElo "2534"]
[BlackElo "2564"]
[TimeControl "300"]
[EndTime "15:58:07 PDT"]
[Termination "wadsy27 won by resignation"]

1. e4 {[%clk 0:04:56]} 1... c5 {[%clk 0:04:57.5]} 2. Nf3 {[%clk 0:04:55.3]} 2...
e6 {[%clk 0:04:57]} 3. c4 {[%clk 0:04:51.2]} 3... Nc6 {[%clk 0:04:55.9]} 4. d4
{[%clk 0:04:49.4]} 4... cxd4 {[%clk 0:04:54.7]} 5. Nxd4 {[%clk 0:04:49.3]} 5...
Nf6 {[%clk 0:04:54]} 6. Nc3 {[%clk 0:04:46.8]} 6... Bb4 {[%clk 0:04:53.2]} 7.
Nxc6 {[%clk 0:04:43]} 7... bxc6 {[%clk 0:04:53.1]} 8. Bd3 {[%clk 0:04:40.3]}
8... e5 {[%clk 0:04:52.7]} 9. O-O {[%clk 0:04:39.2]} 9... O-O {[%clk 0:04:52.1]}
10. Na4 {[%clk 0:04:34]} 10... d5 {[%clk 0:04:51.3]} 11. Bg5 {[%clk 0:04:25.7]}
11... dxe4 {[%clk 0:04:42.5]} 12. Bxf6 {[%clk 0:04:21.6]} 12... Qxf6 {[%clk
0:04:41.6]} 13. Bxe4 {[%clk 0:04:19.6]} 13... Rd8 {[%clk 0:04:40.5]} 14. Qf3
{[%clk 0:04:16.6]} 14... Qxf3 {[%clk 0:04:39]} 15. Bxf3 {[%clk 0:04:15.8]} 15...
Be6 {[%clk 0:04:33.9]} 16. Rfc1 {[%clk 0:03:59.9]} 16... Rac8 {[%clk 0:04:29]}
17. a3 {[%clk 0:03:57.7]} 17... Be7 {[%clk 0:04:23.5]} 18. b4 {[%clk 0:03:55.7]}
18... f5 {[%clk 0:04:22]} 19. Be2 {[%clk 0:03:22.5]} 19... Rd2 {[%clk
0:04:18.6]} 20. Bf1 {[%clk 0:03:19.6]} 20... e4 {[%clk 0:04:13]} 21. Rd1 {[%clk
0:03:16.8]} 21... Rcd8 {[%clk 0:04:11]} 22. Rxd2 {[%clk 0:03:15]} 22... Rxd2
{[%clk 0:04:10.9]} 23. g3 {[%clk 0:02:48.1]} 23... Bf6 {[%clk 0:04:09.2]} 24.
Re1 {[%clk 0:02:46]} 24... Bd4 {[%clk 0:04:06.3]} 25. Re2 {[%clk 0:02:43.6]}
25... Rd1 {[%clk 0:04:01.1]} 26. Rc2 {[%clk 0:02:41.9]} 26... f4 {[%clk
0:03:59.8]} 27. g4 {[%clk 0:02:01.3]} 27... Bxg4 {[%clk 0:03:56.3]} 28. Nc3
{[%clk 0:02:00.8]} 28... Bxc3 {[%clk 0:03:52.6]} 29. Rxc3 {[%clk 0:02:00.2]}
29... Be2 {[%clk 0:03:52.1]} 0-1

[Event "Live Chess"]
[Site "Chess.com"]
[Date "2024.06.01"]
[Round "-"]
[White "RichardABates"]
[Black "RapidMaster109"]
[Result "1-0"]
[WhiteElo "2303"]
[BlackElo "1141"]
[TimeControl "300"]
[EndTime "15:58:09 PDT"]
[Termination "RichardABates won by resignation"]

1. d4 {[%clk 0:04:57.7]} 1... Nf6 {[%clk 0:04:57]} 2. Nf3 {[%clk 0:04:56.2]}
2... e6 {[%clk 0:04:56]} 3. c4 {[%clk 0:04:54.4]} 3... d5 {[%clk 0:04:54.9]} 4.
g3 {[%clk 0:04:52.8]} 4... c6 {[%clk 0:04:52.8]} 5. Bg2 {[%clk 0:04:51.4]} 5...
Bd7 {[%clk 0:04:51.3]} 6. O-O {[%clk 0:04:49.9]} 6... Be7 {[%clk 0:04:47.8]} 7.
Nc3 {[%clk 0:04:48.3]} 7... dxc4 {[%clk 0:04:46.1]} 8. e4 {[%clk 0:04:46.8]}
8... b5 {[%clk 0:04:44.7]} 9. e5 {[%clk 0:04:43.2]} 9... Ng8 {[%clk 0:04:38.9]}
10. a4 {[%clk 0:04:40.3]} 10... Bb4 {[%clk 0:04:35.8]} 11. axb5 {[%clk
0:04:34.1]} 11... cxb5 {[%clk 0:04:32.3]} 12. Ng5 {[%clk 0:04:29.6]} 12... a6
{[%clk 0:04:26.6]} 13. Bxa8 {[%clk 0:04:27]} 1-0

[Event "Live Chess"]
[Site "Chess.com"]
[Date "2024.06.01"]
[Round "-"]
[White "GEMdzq"]
[Black "NAZRIZ1977"]
[Result "0-1"]
[WhiteElo "2290"]
[BlackElo "2175"]
[TimeControl "300"]
[EndTime "15:58:37 PDT"]
[Termination "NAZRIZ1977 won by resignation"]

1. e4 {[%clk 0:04:58.4]} 1... c5 {[%clk 0:04:58.8]} 2. d4 {[%clk 0:04:57.3]}
2... cxd4 {[%clk 0:04:57.6]} 3. c3 {[%clk 0:04:56.9]} 3... Nf6 {[%clk 0:04:57]}
4. e5 {[%clk 0:04:55.8]} 4... Nd5 {[%clk 0:04:56.2]} 5. Qxd4 {[%clk 0:04:55.4]}
5... Nb6 {[%clk 0:04:54.9]} 6. Nf3 {[%clk 0:04:52.4]} 6... Nc6 {[%clk
0:04:54.1]} 7. Qe4 {[%clk 0:04:50.4]} 7... g6 {[%clk 0:04:51.8]} 8. c4 {[%clk
0:04:45.9]} 8... Bg7 {[%clk 0:04:49.9]} 9. Nc3 {[%clk 0:04:44.9]} 9... O-O
{[%clk 0:04:47.7]} 10. h4 {[%clk 0:04:43]} 10... d6 {[%clk 0:04:45.6]} 11. exd6
{[%clk 0:04:40.4]} 11... exd6 {[%clk 0:04:44.8]} 12. Be2 {[%clk 0:04:38.8]}
12... Re8 {[%clk 0:04:43.6]} 13. Qf4 {[%clk 0:04:28.2]} 13... Nb4 {[%clk
0:04:26.4]} 14. O-O {[%clk 0:04:25.3]} 14... Nc2 {[%clk 0:04:23.2]} 15. Rb1
{[%clk 0:04:23.9]} 15... Bxc3 {[%clk 0:04:22.1]} 16. bxc3 {[%clk 0:04:22.4]}
16... Rxe2 {[%clk 0:04:21]} 17. Ng5 {[%clk 0:04:06.5]} 17... Qe7 {[%clk
0:03:59]} 18. h5 {[%clk 0:04:04.7]} 18... Bf5 {[%clk 0:03:37.8]} 19. hxg6 {[%clk
0:03:59.5]} 19... Bxg6 {[%clk 0:03:36.3]} 20. Rb2 {[%clk 0:03:53]} 20... Re8
{[%clk 0:03:24.5]} 21. Be3 {[%clk 0:03:42.8]} 21... Nxe3 {[%clk 0:03:22.5]} 22.
Rxe2 {[%clk 0:03:39.2]} 22... Nbxc4 {[%clk 0:03:10.1]} 23. fxe3 {[%clk
0:03:38.1]} 23... Bd3 {[%clk 0:03:06]} 24. Nxh7 {[%clk 0:03:27.1]} 24... f5
{[%clk 0:02:51.5]} 25. Rd2 {[%clk 0:03:04.8]} 25... Bxf1 {[%clk 0:02:45.5]} 26.
Rf2 {[%clk 0:02:53.3]} 26... Nxe3 {[%clk 0:02:30.6]} 27. Ng5 {[%clk 0:02:46.7]}
27... Kg7 {[%clk 0:02:21.5]} 28. Qg3 {[%clk 0:02:28.9]} 28... Ng4 {[%clk
0:02:13.9]} 29. Rxf5 {[%clk 0:02:19.3]} 29... Qe3+ {[%clk 0:02:05.5]} 30. Qxe3
{[%clk 0:02:16.3]} 30... Nxe3 {[%clk 0:02:04.5]} 31. Ra5 {[%clk 0:02:08.1]}
31... Ba6 {[%clk 0:01:57.9]} 32. Nf3 {[%clk 0:02:04.8]} 32... Nc4 {[%clk
0:01:56.1]} 33. Rg5+ {[%clk 0:02:03.5]} 33... Kf6 {[%clk 0:01:54.5]} 34. Kf2
{[%clk 0:02:02]} 34... Nd2 {[%clk 0:01:47.5]} 35. Rh5 {[%clk 0:01:56.7]} 35...
Nxf3 {[%clk 0:01:46]} 36. gxf3 {[%clk 0:01:54.5]} 36... Rc8 {[%clk 0:01:44.9]}
0-1

[Event "Live Chess"]
[Site "Chess.com"]
[Date "2024.06.01"]
[Round "-"]
[White "TheSmoulderingMaster"]
[Black "katoma"]
[Result "0-1"]
[WhiteElo "1723"]
[BlackElo "2036"]
[TimeControl "300"]
[EndTime "15:58:39 PDT"]
[Termination "katoma won by resignation"]

1. e4 {[%clk 0:04:57.8]} 1... c5 {[%clk 0:04:57.7]} 2. Nf3 {[%clk 0:04:56.4]}
2... Nc6 {[%clk 0:04:55.5]} 3. d4 {[%clk 0:04:55.6]} 3... cxd4 {[%clk
0:04:53.6]} 4. Nxd4 {[%clk 0:04:54]} 4... g6 {[%clk 0:04:51.7]} 5. Nc3 {[%clk
0:04:53.2]} 5... Bg7 {[%clk 0:04:50.4]} 6. Be3 {[%clk 0:04:52.3]} 6... Nf6
{[%clk 0:04:49.4]} 7. f3 {[%clk 0:04:51.6]} 7... Qa5 {[%clk 0:04:24.2]} 8. Nb3
{[%clk 0:04:49.3]} 8... Qd8 {[%clk 0:04:10.5]} 9. Qd2 {[%clk 0:04:44.7]} 9... a5
{[%clk 0:04:07.4]} 10. a4 {[%clk 0:04:42.5]} 10... d6 {[%clk 0:03:43.5]} 11.
O-O-O {[%clk 0:04:39.5]} 11... Be6 {[%clk 0:03:41.6]} 12. g4 {[%clk 0:04:36.7]}
12... h5 {[%clk 0:03:36.7]} 13. Rg1 {[%clk 0:04:28.4]} 13... hxg4 {[%clk
0:03:32.6]} 14. fxg4 {[%clk 0:04:27.5]} 14... Nxg4 {[%clk 0:03:24.5]} 15. Be2
{[%clk 0:04:24.6]} 15... Nxe3 {[%clk 0:03:17.9]} 16. Qxe3 {[%clk 0:04:23.4]}
16... Bh6 {[%clk 0:03:15.9]} 17. Rg5 {[%clk 0:04:21.7]} 17... f6 {[%clk
0:03:11]} 18. Qg3 {[%clk 0:04:14.9]} 18... Bxg5+ {[%clk 0:03:08.8]} 19. Kb1
{[%clk 0:04:13.9]} 19... Ne5 {[%clk 0:02:57.3]} 20. Bb5+ {[%clk 0:04:11.8]}
20... Kf7 {[%clk 0:02:54.7]} 21. Nd5 {[%clk 0:04:09.8]} 21... Rh3 {[%clk
0:02:35.6]} 22. Qg2 {[%clk 0:04:03.8]} 22... Qh8 {[%clk 0:02:20]} 23. Rf1 {[%clk
0:03:59.5]} 23... Qh4 {[%clk 0:02:04]} 24. Qf2 {[%clk 0:03:33.9]} 24... Qxe4
{[%clk 0:01:50.1]} 25. Nc3 {[%clk 0:03:23.5]} 25... Rxc3 {[%clk 0:01:45.1]} 26.
bxc3 {[%clk 0:03:21.3]} 26... Bxb3 {[%clk 0:01:40.5]} 27. Bd3 {[%clk 0:03:15]}
27... Nxd3 {[%clk 0:01:36.1]} 28. cxd3 {[%clk 0:03:10.2]} 28... Qxd3+ {[%clk
0:01:33.6]} 29. Kb2 {[%clk 0:03:08]} 29... Bxa4 {[%clk 0:01:23.6]} 30. Re1
{[%clk 0:03:02.6]} 30... Rc8 {[%clk 0:01:16.6]} 0-1

[Event "Live Chess"]
[Site "Chess.com"]
[Date "2024.06.01"]
[Round "-"]
[White "Duke_of_Bebington"]
[Black "hapehansen"]
[Result "1-0"]
[WhiteElo "1654"]
[BlackElo "2243"]
[TimeControl "300"]
[EndTime "15:58:47 PDT"]
[Termination "Duke_of_Bebington won by checkmate"]

1. e4 {[%clk 0:04:57.6]} 1... d5 {[%clk 0:04:57.5]} 2. exd5 {[%clk 0:04:56.6]}
2... Qxd5 {[%clk 0:04:57.4]} 3. Nf3 {[%clk 0:04:55.4]} 3... Bg4 {[%clk
0:04:54.1]} 4. Be2 {[%clk 0:04:54.7]} 4... Nc6 {[%clk 0:04:50.4]} 5. O-O {[%clk
0:04:54.3]} 5... O-O-O {[%clk 0:04:46.6]} 6. d3 {[%clk 0:04:53.2]} 6... e5
{[%clk 0:04:44.2]} 7. Be3 {[%clk 0:04:48.1]} 7... f6 {[%clk 0:04:30]} 8. Nc3
{[%clk 0:04:46.6]} 8... Qd7 {[%clk 0:04:27.7]} 9. h3 {[%clk 0:04:42.1]} 9... Be6
{[%clk 0:04:23.5]} 10. Kh2 {[%clk 0:04:29.6]} 10... Nge7 {[%clk 0:04:17.6]} 11.
Ne4 {[%clk 0:04:28.5]} 11... Nd5 {[%clk 0:04:11.4]} 12. Bc5 {[%clk 0:04:22.6]}
12... g5 {[%clk 0:03:49.4]} 13. Bxf8 {[%clk 0:04:15.9]} 13... Rdxf8 {[%clk
0:03:41.4]} 14. Nc5 {[%clk 0:04:14.9]} 14... Qd6 {[%clk 0:03:38.1]} 15. Nxe6
{[%clk 0:04:11.2]} 15... Qxe6 {[%clk 0:03:36.5]} 16. Re1 {[%clk 0:03:46]} 16...
Kb8 {[%clk 0:03:29.8]} 17. Nd2 {[%clk 0:03:42]} 17... Nf4 {[%clk 0:03:18.8]} 18.
Bf3 {[%clk 0:03:25.8]} 18... h5 {[%clk 0:03:14.1]} 19. Ne4 {[%clk 0:03:24.8]}
19... g4 {[%clk 0:03:10.8]} 20. Be2 {[%clk 0:03:04.9]} 20... f5 {[%clk
0:02:56.2]} 21. Ng5 {[%clk 0:02:49.4]} 21... Qe7 {[%clk 0:02:47.7]} 22. h4
{[%clk 0:02:47.9]} 22... Nd4 {[%clk 0:02:27.5]} 23. Bf1 {[%clk 0:02:43.2]} 23...
Nfe6 {[%clk 0:02:24.4]} 24. c3 {[%clk 0:02:36.2]} 24... Nxg5 {[%clk 0:02:18.3]}
25. cxd4 {[%clk 0:02:33.4]} 25... Nf3+ {[%clk 0:02:15.4]} 26. gxf3 {[%clk
0:02:30.9]} 26... Qxh4+ {[%clk 0:02:13.1]} 27. Kg1 {[%clk 0:02:29.4]} 27... gxf3
{[%clk 0:02:11.6]} 28. Qxf3 {[%clk 0:02:26.9]} 28... Rhg8+ {[%clk 0:02:06.5]}
29. Bg2 {[%clk 0:02:26.1]} 29... Rg7 {[%clk 0:01:47.2]} 30. Qxb7# {[%clk
0:02:24.3]} 1-0

[Event "Live Chess"]
[Site "Chess.com"]
[Date "2024.06.01"]
[Round "-"]
[White "oscalik"]
[Black "MagnersCarlsberg2870"]
[Result "1-0"]
[WhiteElo "2293"]
[BlackElo "1762"]
[TimeControl "300"]
[EndTime "15:59:10 PDT"]
[Termination "oscalik won by checkmate"]

1. e4 {[%clk 0:04:58.1]} 1... d5 {[%clk 0:04:57.1]} 2. exd5 {[%clk 0:04:56.6]}
2... Nf6 {[%clk 0:04:56]} 3. d4 {[%clk 0:04:54.3]} 3... Qxd5 {[%clk 0:04:53.6]}
4. Nc3 {[%clk 0:04:48.2]} 4... Qa5 {[%clk 0:04:45.9]} 5. Bd2 {[%clk 0:04:45.9]}
5... Qb6 {[%clk 0:04:29.2]} 6. Nf3 {[%clk 0:04:38.3]} 6... Nc6 {[%clk
0:04:23.3]} 7. d5 {[%clk 0:04:04.8]} 7... Nd4 {[%clk 0:04:18.3]} 8. Nxd4 {[%clk
0:03:23.4]} 8... Qxd4 {[%clk 0:04:16.8]} 9. Bb5+ {[%clk 0:03:17.7]} 9... Bd7
{[%clk 0:04:03.5]} 10. Be3 {[%clk 0:03:03.6]} 10... Qh4 {[%clk 0:03:54.3]} 11.
O-O {[%clk 0:02:46]} 11... Ng4 {[%clk 0:03:52.2]} 12. Bf4 {[%clk 0:02:38.8]}
12... c6 {[%clk 0:03:34.5]} 13. dxc6 {[%clk 0:02:20.1]} 13... bxc6 {[%clk
0:03:32.1]} 14. Nd5 {[%clk 0:02:04]} 14... O-O-O {[%clk 0:03:23.5]} 15. Ba6#
{[%clk 0:01:59.6]} 1-0

[Event "Live Chess"]
[Site "Chess.com"]
[Date "2024.06.01"]
[Round "-"]
[White "TedUdale"]
[Black "Yegorych"]
[Result "1-0"]
[WhiteElo "2109"]
[BlackElo "1574"]
[TimeControl "300"]
[EndTime "15:59:12 PDT"]
[Termination "TedUdale won by resignation"]

1. e4 {[%clk 0:04:58.2]} 1... c5 {[%clk 0:04:52.6]} 2. c3 {[%clk 0:04:56]} 2...
e6 {[%clk 0:04:49.7]} 3. Nf3 {[%clk 0:04:54.2]} 3... d5 {[%clk 0:04:45.4]} 4.
exd5 {[%clk 0:04:53.2]} 4... Qxd5 {[%clk 0:04:44.5]} 5. d4 {[%clk 0:04:52]} 5...
Nf6 {[%clk 0:04:39.8]} 6. Be2 {[%clk 0:04:50.7]} 6... Nc6 {[%clk 0:04:36.7]} 7.
dxc5 {[%clk 0:04:48.4]} 7... Qxd1+ {[%clk 0:04:32.7]} 8. Bxd1 {[%clk 0:04:47.3]}
8... Bxc5 {[%clk 0:04:31.8]} 9. O-O {[%clk 0:04:46.4]} 9... O-O {[%clk
0:04:28.8]} 10. Bf4 {[%clk 0:04:36.1]} 10... b6 {[%clk 0:04:17.4]} 11. Ba4
{[%clk 0:04:30.8]} 11... Bb7 {[%clk 0:04:14.9]} 12. Nbd2 {[%clk 0:04:28.4]}
12... Rfd8 {[%clk 0:04:05.9]} 13. Rad1 {[%clk 0:04:24.1]} 13... h6 {[%clk
0:04:03]} 14. Nb3 {[%clk 0:04:14.1]} 14... Be7 {[%clk 0:03:56.2]} 15. h3 {[%clk
0:03:50.1]} 15... Nd5 {[%clk 0:03:47.8]} 16. Bg3 {[%clk 0:03:46.6]} 16... Bd6
{[%clk 0:03:31.2]} 17. Nbd4 {[%clk 0:03:37.9]} 17... Nxd4 {[%clk 0:03:16.4]} 18.
Nxd4 {[%clk 0:03:34.3]} 18... Bxg3 {[%clk 0:03:04.9]} 19. fxg3 {[%clk
0:03:33.2]} 19... Ne3 {[%clk 0:03:02.5]} 20. Nf3 {[%clk 0:03:08]} 20... Rxd1
{[%clk 0:02:56.9]} 21. Bxd1 {[%clk 0:03:05.1]} 21... Nxd1 {[%clk 0:02:56.8]} 22.
Rxd1 {[%clk 0:03:03.8]} 22... Kf8 {[%clk 0:02:43.8]} 23. Kf2 {[%clk 0:03:02.4]}
23... Ke7 {[%clk 0:02:41.7]} 24. Ne5 {[%clk 0:03:00.5]} 24... f6 {[%clk
0:02:23.5]} 25. Rd7+ {[%clk 0:02:56.2]} 25... Kf8 {[%clk 0:02:14.8]} 26. Ng6+
{[%clk 0:02:55.1]} 26... Kg8 {[%clk 0:02:04.3]} 27. Rxb7 {[%clk 0:02:54]} 27...
Kh7 {[%clk 0:01:55.1]} 28. Nf4 {[%clk 0:02:49.8]} 28... e5 {[%clk 0:01:46.5]}
29. Nd5 {[%clk 0:02:48.8]} 29... Kg6 {[%clk 0:01:43.6]} 30. g4 {[%clk 0:02:44]}
1-0

[Event "Live Chess"]
[Site "Chess.com"]
[Date "2024.06.01"]
[Round "-"]
[White "CarmelJane"]
[Black "Crowded_House"]
[Result "0-1"]
[WhiteElo "2074"]
[BlackElo "1742"]
[TimeControl "300"]
[EndTime "15:59:25 PDT"]
[Termination "Crowded_House won by resignation"]

1. Nf3 {[%clk 0:04:55.8]} 1... e6 {[%clk 0:04:58.9]} 2. c4 {[%clk 0:04:53.7]}
2... d5 {[%clk 0:04:56.8]} 3. cxd5 {[%clk 0:04:53.6]} 3... exd5 {[%clk
0:04:55.1]} 4. d4 {[%clk 0:04:53.2]} 4... Bd6 {[%clk 0:04:53.8]} 5. Nc3 {[%clk
0:04:52.6]} 5... c6 {[%clk 0:04:52.6]} 6. e3 {[%clk 0:04:51.2]} 6... Ne7 {[%clk
0:04:51.1]} 7. Bd3 {[%clk 0:04:50.4]} 7... h6 {[%clk 0:04:49.4]} 8. a3 {[%clk
0:04:48.1]} 8... Bf5 {[%clk 0:04:47.7]} 9. Bxf5 {[%clk 0:04:44.8]} 9... Nxf5
{[%clk 0:04:45.9]} 10. Qd3 {[%clk 0:04:43.8]} 10... Ne7 {[%clk 0:04:37.4]} 11.
O-O {[%clk 0:04:40.8]} 11... O-O {[%clk 0:04:36.1]} 12. b4 {[%clk 0:04:39.2]}
12... a6 {[%clk 0:04:34.1]} 13. Rb1 {[%clk 0:04:31.9]} 13... Nd7 {[%clk
0:04:31.1]} 14. a4 {[%clk 0:04:30.8]} 14... b5 {[%clk 0:04:24.4]} 15. a5 {[%clk
0:04:19.7]} 15... Re8 {[%clk 0:04:22.6]} 16. Ne2 {[%clk 0:04:06]} 16... Qc7
{[%clk 0:04:18.4]} 17. Ng3 {[%clk 0:04:02.1]} 17... Nf6 {[%clk 0:04:08.4]} 18.
Bd2 {[%clk 0:03:53.9]} 18... Ng6 {[%clk 0:04:06.9]} 19. Rbc1 {[%clk 0:03:52.3]}
19... Bxg3 {[%clk 0:03:53]} 20. hxg3 {[%clk 0:03:48.9]} 20... Qd6 {[%clk
0:03:43.8]} 21. Rc2 {[%clk 0:03:47]} 21... Rac8 {[%clk 0:03:38.1]} 22. Rfc1
{[%clk 0:03:46.5]} 22... Re6 {[%clk 0:03:33.7]} 23. Rc3 {[%clk 0:03:10.9]} 23...
Ne4 {[%clk 0:03:27.7]} 24. R3c2 {[%clk 0:03:08.4]} 24... Nxd2 {[%clk 0:03:22.4]}
25. Nxd2 {[%clk 0:03:03.1]} 25... Ne7 {[%clk 0:03:21.1]} 26. Nb3 {[%clk
0:03:01]} 26... Qxb4 {[%clk 0:02:58.7]} 27. Nc5 {[%clk 0:02:55.4]} 27... Rd6
{[%clk 0:02:51.3]} 28. Nxa6 {[%clk 0:02:39.4]} 28... Qxa5 {[%clk 0:02:48.5]} 29.
Nc5 {[%clk 0:02:39.1]} 29... Rc7 {[%clk 0:02:37.2]} 30. Nb3 {[%clk 0:02:31.9]}
30... Qb6 {[%clk 0:02:33.6]} 31. Ra1 {[%clk 0:02:28.8]} 31... Ra7 {[%clk
0:02:31.6]} 32. Rca2 {[%clk 0:02:28]} 32... Rdd7 {[%clk 0:02:23.5]} 33. Nc5
{[%clk 0:02:16.6]} 33... Rxa2 {[%clk 0:02:15]} 34. Rxa2 {[%clk 0:02:16.5]} 34...
Ra7 {[%clk 0:02:12.7]} 35. Qe2 {[%clk 0:02:10.9]} 35... Ra5 {[%clk 0:02:05.8]}
36. Rxa5 {[%clk 0:02:05.1]} 36... Qxa5 {[%clk 0:02:04.6]} 37. e4 {[%clk
0:01:59.2]} 37... Qa1+ {[%clk 0:01:51.2]} 38. Kh2 {[%clk 0:01:55.5]} 38... Qxd4
{[%clk 0:01:49.9]} 39. Nb7 {[%clk 0:01:09.8]} 39... Qxe4 {[%clk 0:01:46.8]} 40.
Qh5 {[%clk 0:01:07]} 40... Qg6 {[%clk 0:01:37.8]} 41. Qd1 {[%clk 0:01:01.4]}
41... Qg5 {[%clk 0:01:22.6]} 42. Nc5 {[%clk 0:00:59.8]} 42... g6 {[%clk
0:01:20.2]} 43. Qe1 {[%clk 0:00:58.2]} 43... Qh5+ {[%clk 0:01:17.4]} 44. Kg1
{[%clk 0:00:57.3]} 44... Qg5 {[%clk 0:01:16.2]} 45. Nd7 {[%clk 0:00:54.5]} 45...
Kg7 {[%clk 0:01:12.3]} 46. f4 {[%clk 0:00:53.9]} 46... Qf5 {[%clk 0:01:10.1]}
47. Qxe7 {[%clk 0:00:52.8]} 47... Qb1+ {[%clk 0:01:08.6]} 48. Kh2 {[%clk
0:00:51.5]} 48... Qf5 {[%clk 0:01:05.9]} 49. Ne5 {[%clk 0:00:41.5]} 49... Qh5+
{[%clk 0:01:02.3]} 50. Kg1 {[%clk 0:00:30.9]} 50... Qd1+ {[%clk 0:00:47.4]} 51.
Kh2 {[%clk 0:00:29.2]} 51... Qh5+ {[%clk 0:00:46]} 52. Qh4 {[%clk 0:00:25.8]}
52... Qxh4+ {[%clk 0:00:44.5]} 53. gxh4 {[%clk 0:00:25.7]} 53... c5 {[%clk
0:00:42.4]} 54. Nd3 {[%clk 0:00:24.5]} 54... c4 {[%clk 0:00:41.3]} 55. Nb4
{[%clk 0:00:23.9]} 55... d4 {[%clk 0:00:39.8]} 56. Kg1 {[%clk 0:00:23]} 56... d3
{[%clk 0:00:39]} 57. Na2 {[%clk 0:00:20.4]} 57... d2 {[%clk 0:00:35.1]} 58. Nc3
{[%clk 0:00:19.1]} 58... b4 {[%clk 0:00:33.1]} 0-1

[Event "Live Chess"]
[Site "Chess.com"]
[Date "2024.06.01"]
[Round "-"]
[White "NebodarMatevich"]
[Black "MaksymYurii"]
[Result "0-1"]
[WhiteElo "1564"]
[BlackElo "953"]
[TimeControl "300"]
[EndTime "15:59:33 PDT"]
[Termination "MaksymYurii won by checkmate"]

1. e4 {[%clk 0:04:59.8]} 1... e5 {[%clk 0:04:57.9]} 2. d4 {[%clk 0:04:59.2]}
2... exd4 {[%clk 0:04:55.9]} 3. Qxd4 {[%clk 0:04:59.1]} 3... Nc6 {[%clk
0:04:53]} 4. Qe3 {[%clk 0:04:58.6]} 4... Nf6 {[%clk 0:04:49.5]} 5. Nc3 {[%clk
0:04:57.3]} 5... Bb4 {[%clk 0:04:43.1]} 6. Bd2 {[%clk 0:04:56.9]} 6... O-O
{[%clk 0:04:40.7]} 7. O-O-O {[%clk 0:04:56.4]} 7... Ng4 {[%clk 0:04:36.1]} 8.
Qg3 {[%clk 0:04:55.1]} 8... d6 {[%clk 0:04:32.8]} 9. h3 {[%clk 0:04:53.6]} 9...
Nge5 {[%clk 0:04:17]} 10. f4 {[%clk 0:04:49.2]} 10... Nc4 {[%clk 0:04:14]} 11.
Be1 {[%clk 0:04:45.4]} 11... Nxb2 {[%clk 0:04:05.8]} 12. Kxb2 {[%clk 0:04:41.4]}
12... Qf6 {[%clk 0:04:02.5]} 13. a3 {[%clk 0:04:32.4]} 13... Bxa3+ {[%clk
0:03:37.9]} 14. Kxa3 {[%clk 0:04:30.8]} 14... b5 {[%clk 0:03:35]} 15. Bxb5
{[%clk 0:04:13]} 15... Nd4 {[%clk 0:03:24]} 16. Bd3 {[%clk 0:04:04]} 16... Rb8
{[%clk 0:03:12.6]} 17. e5 {[%clk 0:04:01.5]} 17... dxe5 {[%clk 0:03:10.6]} 18.
fxe5 {[%clk 0:04:00.6]} 18... Qc6 {[%clk 0:02:56]} 19. Nge2 {[%clk 0:03:48]}
19... Qc5+ {[%clk 0:02:45.8]} 20. Ka2 {[%clk 0:03:40.6]} 20... Qa5+ {[%clk
0:02:38.8]} 21. Na4 {[%clk 0:03:30.7]} 21... Qxa4# {[%clk 0:02:32.5]} 0-1